bitfinex-derivatives/quotes_ETHF0:USTF0_20251012
["timestamp","ask_amount","ask_price","bid_price","bid_amount"]
[1760274678770,1.3825,3830.7,3830.6,2.42735]
[1760274679063,1.1357,3831.4,3831.3,1.04487]
[1760274679261,41.9357,3831.4,3831.3,1.04487]
[1760274679461,45.60061596,3831.4,3831.3,1.04487]
[1760274679658,53.2265027,3831.4,3830.7,0.8562]
[1760274679972,0.8112,3830.7,3830.5,0.46977]
[1760274680262,1.9469,3830.6,3830.5,1.04497]
[1760274680466,8.22371966,3830.6,3830.5,1.04497]
[1760274680667,1.9469,3830.6,3830.5,1.04497]
[1760274680869,7.97987519,3830.6,3830.5,1.04497]
[1760274681368,7.97987519,3830.6,3830.5,2.42737]
[1760274681671,7.97987519,3830.6,3830.5,1.04497]
[1760274682760,7.97987519,3830.6,3830.5,0.46977]
[1760274683167,7.97987519,3830.6,3830.5,1.04497]
[1760274683668,7.97987519,3830.6,3830.5,0.46977]
[1760274683863,1.9469,3829.9,3829.8,1.04505]
[1760274684064,1.9469,3829.9,3829.8,2.42745]
[1760274684271,8.26676301,3829.9,3829.8,2.42745]
[1760274684570,8.26676301,3829.9,3829.8,1.04505]
[1760274684571,49.06676301,3829.9,3829.8,1.04505]
[1760274684965,48.25556301,3829.9,3829.8,2.42745]
[1760274685274,47.69116301,3829.9,3829.8,2.42745]
[1760274685670,1.27118539,3832.0,3830.5,1.57117]
[1760274685671,1.9469,3830.6,3830.5,1.57117]
[1760274685974,1.3825,3831.0,3830.9,1.57112]
[1760274686166,4.34543317,3831.4,3831.3,1.04487]
[1760274686567,7.19331151,3831.3,3831.2,0.46968]
[1760274686767,49.27418151,3831.3,3831.2,0.46968]
[1760274688070,1.9469,3831.1,3831.0,0.4697]
[1760274688267,2.41659,3831.1,3830.8,0.46972]
[1760274688471,1.9469,3830.4,3830.3,1.57119]
[1760274688669,1.9469,3830.4,3830.3,2.42739]
[1760274688872,8.34150535,3830.4,3830.3,2.42739]
[1760274690167,8.34150535,3830.4,3830.3,1.57119]
[1760274690569,8.34150535,3830.4,3830.3,2.42739]
[1760274690764,1.3756,3829.9,3829.8,3.67765]
[1760274690971,1.3825,3829.9,3829.8,5.63525]
[1760274691171,7.53379176,3829.9,3829.8,5.63525]
[1760274691374,48.33379176,3829.9,3829.8,5.63525]
[1760274691879,48.89819176,3829.9,3829.8,4.77905]
[1760274692080,46.95129176,3829.9,3829.8,5.63525]
[1760274692377,1.4332,3831.0,3830.9,0.46972]
[1760274692681,2.75481,3831.0,3830.9,0.46972]
[1760274692979,8.22860846,3831.0,3830.9,0.46972]
[1760274693179,7.75889846,3831.0,3830.9,1.02122]
[1760274693374,7.41479846,3831.0,3830.9,2.36652]
[1760274693578,6.01269846,3831.0,3830.9,2.36652]
[1760274693782,5.47379846,3831.0,3830.9,2.36652]
[1760274695478,5.47379846,3831.0,3830.9,5.57432]
[1760274695479,1.57282763,3831.0,3830.9,5.57432]
[1760274695780,40.8,3831.3,3831.2,0.46968]
[1760274695983,40.8,3831.3,3831.2,2.36648]
[1760274696184,47.09244404,3831.3,3831.2,2.36648]
[1760274698679,0.00193317,3831.4,3831.3,0.46967]
[1760274698882,0.00193317,3831.4,3831.3,5.57427]
[1760274699186,0.00193317,3831.4,3831.3,10.57427]
[1760274699478,0.00087088,3831.4,3831.3,10.57427]
[1760274700378,0.00087088,3831.4,3831.3,5.57427]
[1760274704682,1.33417088,3831.4,3831.3,5.57427]
[1760274704884,4.25527247,3831.4,3831.3,5.57427]
[1760274705187,3.46197247,3831.4,3831.3,5.57427]
[1760274705387,2.92197247,3831.4,3831.3,5.57427]
[1760274705682,8.29160796,3831.4,3831.3,4.75097]
[1760274705894,8.29160796,3831.4,3831.3,5.60827]
[1760274708689,8.29160796,3831.4,3831.3,4.77097]
[1760274708990,8.29160796,3831.4,3831.3,5.60827]
[1760274709188,8.29160796,3831.4,3831.3,4.77097]
[1760274709783,8.29160796,3831.4,3831.3,3.67747]
[1760274710085,8.29160796,3831.4,3831.3,4.20217]
[1760274710280,8.29160796,3831.4,3831.3,5.58147]
[1760274710987,6.39180796,3831.4,3831.3,5.58147]
[1760274711588,3.47070637,3831.4,3831.3,5.58147]
[1760274713486,8.2557241,3831.4,3831.3,3.67747]
[1760274713792,8.2557241,3831.4,3831.3,5.58147]
[1760274715090,8.2557241,3831.4,3831.3,4.74417]
[1760274715290,8.2557241,3831.4,3831.3,3.67747]
[1760274715992,8.2557241,3831.4,3831.3,4.20217]
[1760274716795,8.2557241,3831.4,3831.3,5.58147]
[1760274719290,8.2557241,3831.4,3831.3,3.67747]
[1760274719481,8.2557241,3831.4,3831.3,0.46967]
[1760274719886,49.0557241,3831.4,3831.3,0.46967]
[1760274721683,49.0557241,3831.4,3831.3,0.99437]
[1760274722294,49.0557241,3831.4,3831.3,0.46967]
[1760274722792,49.0557241,3831.4,3831.3,0.99437]
[1760274723387,1.9064,3830.9,3830.8,3.2078]
[1760274723586,1.9064,3830.9,3830.8,0.46973]
[1760274723792,8.2870898,3830.9,3830.8,0.46973]
[1760274724292,49.0870898,3830.9,3830.8,0.46973]
[1760274724491,49.0870898,3830.9,3830.8,1.02933]
[1760274724684,49.0870898,3830.9,3830.8,2.33293]
[1760274724886,49.0870898,3830.9,3830.8,1.55163]
[1760274725990,49.0870898,3830.9,3830.8,0.46973]
[1760274726190,2.2439,3830.5,3830.4,4.23718]
[1760274726392,1.9064,3830.5,3830.4,5.54078]
[1760274726688,6.1452405,3830.5,3830.4,5.54078]
[1760274726990,1.37207088,3831.4,3831.3,1.55157]
[1760274727190,1.37207088,3831.4,3831.3,2.33287]
[1760274727392,2.80423916,3831.4,3831.3,2.33287]
[1760274727687,1.9064,3832.3,3832.2,2.33276]
[1760274727886,1.9064,3832.5,3832.4,1.55143]
[1760274728086,43.0439,3832.5,3832.4,1.55143]
[1760274728285,49.28442914,3832.5,3832.4,0.46953]
[1760274728488,1.9064,3831.9,3831.8,1.02921]
[1760274728683,1.0745,3832.2,3832.1,0.5223]
[1760274728886,0.5393,3832.2,3832.1,2.33277]
[1760274729188,6.63450563,3832.2,3832.1,2.33277]
[1760274729692,2.72298152,3832.2,3832.1,2.33277]
[1760274730196,42.17444907,3832.5,3832.4,1.81043]
[1760274730388,42.17444907,3832.5,3832.4,5.54053]
[1760274730587,48.46899824,3832.5,3832.4,5.54053]
[1760274731384,49.34169824,3832.5,3832.4,1.02913]
[1760274731598,1.9064,3832.3,3832.2,0.46955]
[1760274731798,1.9064,3832.3,3832.0,0.46957]
[1760274731998,8.5556521,3832.3,3832.1,0.46957]
[1760274732299,8.0861021,3832.3,3832.2,0.46956]
[1760274733993,11.7634521,3832.3,3832.2,0.46956]
[1760274734393,11.2939021,3832.3,3832.2,0.46956]
[1760274735298,8.0861021,3832.3,3832.2,0.46956]
[1760274735799,16.7634521,3832.3,3832.2,0.46956]
[1760274736296,0.46959,3831.9,3831.8,0.00262546]
[1760274736500,16.2939021,3832.3,3831.4,0.46966]
[1760274736501,1.88164,3831.5,3831.4,0.46966]
[1760274736692,2.2439,3831.5,3831.4,0.46966]
[1760274736892,49.38927512,3831.5,3831.4,0.46966]
[1760274737600,49.38927512,3831.5,3831.4,0.47188917]
[1760274738499,49.05177512,3831.5,3831.4,5.54288917]
[1760274738899,49.05177512,3831.5,3831.4,2.33508917]
[1760274741200,47.14537512,3831.5,3831.4,2.33508917]
[1760274741505,48.51657512,3831.5,3831.4,2.33508917]
[1760274741802,46.57686512,3831.5,3831.4,5.54288917]
[1760274743102,0.88943821,3831.5,3831.4,7.88258325]
[1760274743410,2.24714907,3832.5,3832.4,0.46953]
[1760274743600,43.04714907,3832.5,3832.4,0.46953]
[1760274743793,45.96955654,3832.5,3832.4,1.02913]
[1760274744600,49.30726466,3832.5,3832.4,1.02913]
[1760274744802,49.30726466,3832.5,3832.4,1.55143]
[1760274745009,47.06336466,3832.5,3832.4,7.10373]
[1760274745203,43.72565654,3832.5,3832.4,7.10373]
[1760274745702,44.55755654,3832.5,3832.4,7.10373]
[1760274746408,44.55755654,3832.5,3832.4,2.10373]
[1760274747009,45.09685654,3832.5,3832.4,1.55143]
[1760274747204,45.43435654,3832.5,3832.4,1.55143]
[1760274747909,49.43965218,3832.5,3832.4,0.46953]
[1760274748999,0.8319,3832.4,3832.3,0.46955]
[1760274749200,1.9064,3832.4,3832.3,0.46955]
[1760274749403,8.18256923,3832.4,3832.3,1.02915]
[1760274749806,8.18256923,3832.4,3832.3,0.46955]
[1760274750814,8.18256923,3832.4,3832.3,1.02915]
[1760274751508,8.18256923,3832.4,3832.3,0.46955]
[1760274753614,8.18256923,3832.4,3832.3,0.99445]
[1760274759419,6.27616923,3832.4,3832.3,5.32935]
[1760274759620,7.69346923,3832.4,3832.3,5.32935]
[1760274760624,8.24776923,3832.4,3832.3,4.75145]
[1760274761920,7.13536923,3832.4,3832.3,5.32935]
[1760274762719,6.27616923,3832.4,3832.3,5.32935]
[1760274762926,7.13536923,3832.4,3832.3,5.32935]
[1760274763126,7.69346923,3832.4,3832.3,4.75145]
[1760274764222,8.24776923,3832.4,3832.3,4.75145]
[1760274764428,8.24776923,3832.4,3832.3,3.67735]
[1760274765026,8.24776923,3832.4,3832.3,4.20225]
[1760274765829,8.24776923,3832.4,3832.3,3.67735]
[1760274766029,8.24776923,3832.4,3832.3,4.21405]
[1760274770425,8.24776923,3832.4,3832.3,4.78955]
[1760274772333,8.24776923,3832.4,3832.3,3.67735]
[1760274772530,8.24776923,3832.4,3832.3,4.78955]
[1760274773835,8.24776923,3832.4,3832.3,3.67735]
[1760274774032,1.8449,3831.9,3831.8,2.33916242]
[1760274774333,8.55403278,3831.9,3831.8,0.46961]
[1760274774536,1.8449,3831.8,3831.7,0.46962]
[1760274774935,8.08444278,3831.8,3831.7,0.46962]
[1760274775137,1.8449,3831.6,3831.5,0.46964]
[1760274775431,2.63664,3831.5,3831.4,0.00222917]
[1760274775635,43.43664,3831.5,3831.4,0.00222917]
[1760274775930,49.56358074,3831.5,3831.4,0.00222917]
[1760274776136,49.09394074,3831.5,3831.4,0.47188917]
[1760274776337,49.09394074,3831.5,3831.4,1.00858917]
[1760274776534,43.57000602,3831.5,3831.4,10.35718917]
[1760274777140,40.8,3831.5,3831.4,10.35718917]
[1760274777636,1.6282,3832.0,3831.9,1.1122]
[1760274778034,48.64009998,3832.0,3831.9,1.1122]
[1760274778229,48.64009998,3832.0,3831.9,1.58179]
[1760274779740,49.17889998,3832.0,3831.9,0.46959]
[1760274780540,49.17889998,3832.0,3831.9,1.00629]
[1760274780742,49.17889998,3832.0,3831.9,1.58179]
[1760274780940,48.11849998,3832.0,3831.9,5.35489]
[1760274781142,48.64009998,3832.0,3831.9,5.35489]
[1760274781341,48.64009998,3832.0,3831.9,4.78959]
[1760274781839,49.17889998,3832.0,3831.9,0.46959]
[1760274782238,49.17889998,3832.0,3831.9,1.58179]
[1760274784747,49.17889998,3832.0,3831.5,5.55057784]
[1760274784953,2.281,3831.5,3831.4,0.00222917]
[1760274785443,8.6825528,3831.5,3831.4,0.47188917]
[1760274786443,9.1521928,3831.5,3831.4,0.00222917]
[1760274786646,9.1521928,3831.5,3831.4,0.47188917]
[1760274787442,9.1521928,3831.5,3830.8,2.89187784]
[1760274787443,1.9701,3830.9,3830.8,2.81250784]
[1760274787648,1.9701,3830.9,3830.8,0.46973]
[1760274787842,1.9701,3830.7,3830.6,3.67754]
[1760274788148,48.94665636,3830.7,3830.6,3.67754]
[1760274788546,49.41639636,3830.7,3830.6,0.00309169]
[1760274789249,48.94665636,3830.7,3830.6,0.47284169]
[1760274790553,47.82855636,3830.7,3830.6,5.32434169]
[1760274790854,48.38565636,3830.7,3830.6,4.77524169]
[1760274791947,0.852,3831.2,3831.1,0.46969]
[1760274792250,0.852,3831.2,3831.1,5.32119]
[1760274792454,7.06615169,3831.2,3831.1,5.32119]
[1760274792849,8.18425169,3831.2,3831.1,4.77209]
[1760274793153,48.98425169,3831.2,3831.1,4.77209]
[1760274793356,47.86615169,3831.2,3831.1,5.32119]
[1760274793952,2.78968059,3831.2,3831.1,10.32119]
[1760274794253,0.852,3831.6,3831.5,2.11334]
[1760274794254,1.4091,3831.6,3831.5,2.11334]
[1760274794448,42.2091,3831.6,3831.5,2.11334]
[1760274794650,45.19461364,3831.6,3831.5,1.56424]
[1760274795149,45.19461364,3831.6,3831.2,1.72329]
[1760274795150,49.5656433,3831.6,3831.1,3.2078]
[1760274795356,2.281,3831.0,3830.9,0.46972]
[1760274795744,8.42754363,3831.0,3830.9,0.46972]
[1760274795947,8.42754363,3831.0,3830.9,1.01652]
[1760274799861,0.852,3830.9,3830.6,0.47284169]
[1760274800063,1.9701,3830.7,3830.6,0.47284169]
[1760274800461,49.03667234,3830.7,3830.6,0.47284169]
[1760274800862,49.50641234,3830.7,3830.6,0.00309169]
[1760274801758,0.852,3829.8,3829.7,4.77226]
[1760274801962,0.3109,3830.5,3830.4,0.46978]
[1760274802159,41.3571,3830.7,3830.6,2.11345]
[1760274802463,41.9181,3830.7,3830.6,1.56435]
[1760274802659,48.98295295,3830.7,3830.6,1.56435]
[1760274803763,48.98295295,3830.7,3830.6,2.11345]
[1760274803764,2.81154905,3830.7,3830.6,2.11345]
[1760274804163,2.81154905,3830.7,3830.6,7.11345]
[1760274804364,0.00183867,3830.7,3830.6,7.11345]
[1760274804663,0.00183867,3830.7,3830.6,9.45622784]
[1760274806964,1.97193867,3830.7,3830.5,2.34277784]
[1760274807172,8.14491474,3830.7,3830.6,1.01655]
[1760274807670,0.00183867,3830.7,3830.6,2.11345]
[1760274807862,1.41093867,3830.7,3830.6,2.11345]
[1760274808062,1.97193867,3830.7,3830.6,1.56435]
[1760274808362,4.8998341,3830.7,3830.6,1.56435]
[1760274809669,4.3388341,3830.7,3830.6,2.11345]
[1760274810371,0.00183867,3830.7,3830.6,2.11345]
[1760274811872,4.81459882,3830.7,3830.6,1.56435]
[1760274812473,3.69649882,3830.7,3830.6,2.08975]
[1760274812974,0.00183867,3830.7,3830.6,7.08975]
[1760274813274,0.7734,3831.7,3831.6,2.06083]
[1760274813470,41.5734,3831.7,3831.6,2.06083]
[1760274813676,44.34556035,3831.7,3831.6,2.06083]
[1760274814173,44.34853159,3831.7,3831.6,2.0631174]
[1760274814876,44.88163159,3831.7,3831.6,1.5377174]
[1760274816075,44.88163159,3831.7,3831.6,2.0631174]
[1760274817973,49.30488435,3831.7,3831.6,0.0022874]
[1760274818182,54.30488435,3831.7,3831.6,0.0022874]
[1760274818383,53.83526435,3831.7,3831.6,1.0174174]
[1760274818682,53.83526435,3831.7,3831.6,0.4719174]
[1760274819480,53.83526435,3831.7,3831.6,1.0174174]
[1760274819685,48.28266435,3831.7,3831.6,5.2709174]
[1760274819983,48.28266435,3831.7,3831.6,4.7455174]
[1760274820286,48.83526435,3831.7,3831.6,3.6797174]
[1760274820785,48.83526435,3831.7,3831.6,0.4719174]
[1760274822687,49.30488435,3831.7,3831.6,0.0022874]
[1760274823686,52.51268435,3831.7,3831.6,0.0022874]
[1760274823884,52.51268435,3831.7,3830.7,0.46974]
[1760274823885,1.8703,3830.8,3830.7,0.46974]
[1760274824185,5.27333342,3830.8,3830.7,0.46974]
[1760274824388,8.16317654,3830.8,3830.7,0.46974]
[1760274824589,48.96317654,3830.8,3830.7,0.46974]
[1760274828193,49.43290654,3830.8,3830.7,0.46974]
[1760274828594,48.96317654,3830.8,3830.7,0.46974]
[1760274829495,48.96317654,3830.8,3830.7,0.99014]
[1760274829686,1.8703,3830.6,3830.5,0.46976]
[1760274830095,8.19307906,3830.6,3830.5,0.99016]
[1760274830297,8.19307906,3830.6,3830.5,0.46976]
[1760274831190,7.39107906,3830.6,3830.4,0.46977]
[1760274831386,2.34009,3830.3,3830.2,0.46979]
[1760274831792,8.81564814,3830.3,3830.2,0.46979]
[1760274833393,1.02692,3830.1,3830.0,0.46982]
[1760274833695,2.34012,3830.1,3830.0,0.46982]
[1760274833891,2.34012,3830.1,3829.8,0.46984]
[1760274833892,2.34014,3829.9,3829.8,0.46984]
[1760274834297,8.67887875,3829.9,3829.8,0.46984]
[1760274834800,49.47887875,3829.9,3829.8,0.46984]
[1760274835191,49.00903875,3829.9,3829.8,0.46984]
[1760274835490,49.47887875,3829.9,3829.8,0.46984]
[1760274836497,49.00903875,3829.9,3829.8,0.46984]
[1760274837402,49.47887875,3829.9,3829.8,0.46984]
[1760274838194,2.34018,3829.7,3829.6,0.46988]
[1760274838393,2.34023,3829.2,3829.1,3.2078]
[1760274838600,1.8703,3829.2,3829.1,0.46994]
[1760274838901,49.03572509,3829.2,3829.1,0.46994]
[1760274840105,49.03572509,3829.2,3829.1,0.99034]
[1760274840698,6.36542509,3829.2,3829.1,2.05264]
[1760274841000,3.5356,3830.5,3830.4,0.46978]
[1760274841201,45.4039,3830.5,3830.4,1.53648]
[1760274841401,48.04741928,3830.5,3830.4,0.99018]
[1760274841602,1.0683,3830.3,3830.2,0.4698]
[1760274841797,1.0683,3830.3,3830.2,1.5365]
[1760274841996,7.45124796,3830.3,3830.2,2.3282]
[1760274842804,8.26014796,3830.3,3830.2,2.3282]
[1760274843003,8.26014796,3830.3,3830.2,1.5365]
[1760274843201,8.26014796,3830.3,3830.2,2.3449]
[1760274843906,8.26014796,3830.3,3830.2,1.5365]
[1760274845304,8.26014796,3830.3,3830.2,2.3449]
[1760274845702,6.38294796,3830.3,3830.2,2.3449]
[1760274845910,3.02058349,3830.3,3830.2,2.3449]
[1760274846300,42.1494,3830.5,3830.4,2.35428]
[1760274846597,44.94588869,3830.5,3830.4,2.35428]
[1760274846801,48.28934864,3830.5,3830.4,2.35428]
[1760274847200,0.8089,3830.9,3830.8,0.46973]
[1760274847401,0.46967,3831.3,3830.8,3.2078]
[1760274847704,1.0532,3830.4,3830.3,3.67759]
[1760274847902,1.8621,3830.4,3830.3,0.99539]
[1760274848100,5.31708869,3830.4,3830.3,0.46979]
[1760274848410,46.11708869,3830.4,3830.3,0.46979]
[1760274849411,46.11708869,3830.4,3830.3,0.99539]
[1760274852311,2.1634,3830.0,3829.9,3.67764]
[1760274852817,8.51213385,3830.0,3829.9,4.20324]
[1760274853008,49.31213385,3830.0,3829.9,4.20324]
[1760274853409,49.31213385,3830.0,3829.9,3.67764]
[1760274854420,49.31213385,3830.0,3829.9,0.46984]
[1760274855414,47.14873385,3830.0,3829.9,5.56214]
[1760274855710,1.3494,3830.6,3830.5,2.35427]
[1760274855907,0.8089,3830.6,3830.5,2.35427]
[1760274856113,48.37013963,3830.6,3830.5,2.35427]
[1760274857620,48.37013963,3830.6,3830.5,5.56207]
[1760274858614,47.02073963,3830.6,3830.5,5.56207]
[1760274859009,47.82963963,3830.6,3830.5,5.56207]
[1760274859212,48.37013963,3830.6,3830.5,5.56207]
[1760274859412,3.2078,3831.4,3830.5,5.56207]
[1760274859413,0.8089,3831.1,3831.0,0.46971]
[1760274859615,1.3494,3831.1,3831.0,2.35421]
[1760274859815,7.60331599,3831.1,3831.0,2.35421]
[1760274860016,48.40331599,3831.1,3831.0,2.35421]
[1760274860322,48.91601599,3831.1,3831.0,2.35421]
[1760274861017,48.91601599,3831.1,3831.0,0.99531]
[1760274861217,48.91601599,3831.1,3831.0,0.46971]
[1760274861620,1.0532,3830.6,3830.5,3.67757]
[1760274861817,1.8621,3830.6,3830.5,0.46977]
[1760274862026,8.09803932,3830.6,3830.5,0.46977]
[1760274863025,1.0532,3830.2,3830.1,4.20322]
[1760274863226,1.8621,3830.2,3830.1,4.75372]
[1760274863429,8.1504978,3830.2,3830.1,5.56212]
[1760274864021,6.2883978,3830.2,3830.1,5.56212]
[1760274864223,2.89646589,3830.2,3830.1,5.56212]
[1760274865527,2.89646589,3830.2,3830.1,2.35432]
[1760274865733,2.89646589,3830.2,3830.1,5.56212]
[1760274866028,2.36581589,3830.2,3830.1,5.56212]
[1760274866223,1.3494,3830.6,3830.5,1.54587]
[1760274866424,40.8,3831.1,3830.8,0.5256]
[1760274866725,6.67741417,3830.9,3830.8,1.0761]
[1760274867024,1.8621,3830.9,3830.8,0.46973]
[1760274867326,7.99901417,3830.9,3830.8,0.46973]
[1760274867524,7.99901417,3830.9,3830.8,0.99533]
[1760274867728,6.13691417,3830.9,3830.8,2.35423]
[1760274867928,7.48631417,3830.9,3830.8,2.35423]
[1760274868124,7.48631417,3830.9,3830.5,3.521]
[1760274868125,1.0532,3830.6,3830.5,4.20317]
[1760274868427,1.8621,3830.6,3830.5,5.56207]
[1760274868630,8.08075695,3830.6,3830.5,5.56207]
[1760274869527,8.08075695,3830.6,3830.5,3.67757]
[1760274869833,8.08075695,3830.6,3830.5,4.20317]
[1760274870025,8.08075695,3830.6,3830.5,5.56207]
[1760274870230,6.21865695,3830.6,3830.5,5.87527]
[1760274870735,7.56805695,3830.6,3830.5,5.56207]
[1760274871731,6.21865695,3830.6,3830.5,10.87527]
[1760274871927,40.8,3831.1,3831.0,2.67761]
[1760274872128,1.3494,3831.5,3831.4,2.35416]
[1760274872432,3.97940727,3831.5,3831.4,2.35416]
[1760274872734,45.29210727,3831.5,3831.4,2.35416]
[1760274873035,45.61330727,3831.5,3831.4,0.99526]
[1760274874934,45.61330727,3831.5,3831.4,1.53496]
[1760274875129,45.61330727,3831.5,3831.4,2.34436]
[1760274875333,45.61330727,3831.5,3831.4,1.53496]
[1760274875728,45.61330727,3831.5,3831.4,4.74276]
[1760274878633,45.61330727,3831.5,3831.4,0.46966]
[1760274878634,49.03958874,3831.5,3831.4,0.46966]
[1760274881639,48.52688874,3831.5,3831.4,0.99226]
[1760274882041,49.06328874,3831.5,3831.4,0.99226]
[1760274883443,49.06328874,3831.5,3831.4,0.46966]
[1760274887641,49.53292874,3831.5,3831.4,0.46966]
[1760274887843,1.8828,3830.8,3830.7,2.3402044]
[1760274888142,1.8828,3830.8,3830.7,0.46974]
[1760274888340,8.06338185,3830.8,3830.7,0.46974]
[1760274888534,8.06338185,3830.8,3830.7,1.01484]
[1760274889145,8.06338185,3830.8,3830.7,2.30634]
[1760274889845,8.06338185,3830.8,3830.7,1.52394]
[1760274890347,8.06338185,3830.8,3830.7,2.30634]
[1760274891047,8.06338185,3830.8,3830.7,1.52394]
[1760274894050,8.06338185,3830.8,3830.7,1.01484]
[1760274896454,8.06338185,3830.8,3830.7,1.52394]
[1760274896749,8.06338185,3830.8,3830.7,2.30634]
[1760274899956,8.06338185,3830.8,3830.7,1.52394]
[1760274900654,0.8145,3830.7,3830.6,3.2078]
[1760274900961,1.8828,3830.2,3830.1,0.46982]
[1760274901254,1.8828,3829.9,3829.8,0.46985]
[1760274901453,43.15264,3829.9,3829.7,3.2078]
[1760274901651,0.5242,3829.3,3829.2,5.5480044]
[1760274901844,1.8828,3829.3,3829.2,5.51433]
[1760274902049,8.28122211,3829.3,3829.2,5.51433]
[1760274902749,2.93277171,3829.3,3829.2,10.51433]
[1760274903956,0.2997,3830.5,3830.0,0.46983]
[1760274903957,1.2931,3830.1,3830.0,0.46983]
[1760274904252,1.8002,3830.1,3830.0,4.75033]
[1760274904455,48.09088536,3830.1,3830.0,4.75033]
[1760274905454,48.09088536,3830.1,3830.0,3.67763]
[1760274905658,2.1153,3830.0,3829.9,0.46984]
[1760274906052,8.32695351,3830.0,3829.9,0.46984]
[1760274906251,7.55265351,3830.0,3829.5,3.2078]
[1760274906554,1.8002,3829.6,3829.5,3.2078]
[1760274906757,1.8002,3829.6,3829.5,4.22279]
[1760274906952,8.2193585,3829.6,3829.5,4.22279]
[1760274907253,8.2193585,3829.6,3829.5,4.75039]
[1760274907459,2.96000879,3829.6,3829.5,10.69379]
[1760274907660,1.2931,3830.0,3829.9,2.32174]
[1760274907859,1.2931,3830.0,3829.9,5.52954]
[1760274908059,7.63545696,3830.0,3829.9,5.52954]
[1760274909255,2.98707357,3830.0,3829.9,5.52954]
[1760274911163,2.98707357,3830.0,3829.9,7.86878757]
[1760274913460,2.34166357,3830.0,3829.9,7.86878757]
[1760274913662,1.0259,3831.5,3831.4,2.32156]
[1760274913857,0.52177124,3831.7,3831.6,1.54233]
[1760274914058,41.32177124,3831.7,3831.6,2.32153]
[1760274914253,6.82306938,3831.7,3831.6,2.32153]
[1760274914459,2.91223659,3831.7,3831.6,2.32153]
[1760274914662,0.00297124,3831.7,3831.6,2.32153]
[1760274917657,1.24e-06,3831.7,3831.6,2.32153]
[1760274918358,1.24e-06,3831.7,3831.6,7.32153]
[1760274918565,1.24e-06,3831.7,3831.6,9.66339107]
[1760274919258,1.24e-06,3831.7,3831.6,7.3241435]
[1760274920666,2.0202,3833.3,3833.2,1.8519]
[1760274920865,2.0202,3833.3,3833.2,2.32134]
[1760274921062,7.98495733,3833.3,3833.2,2.32134]
[1760274921261,48.78495733,3833.3,3833.2,2.32134]
[1760274921459,48.01065733,3833.3,3833.2,2.32134]
[1760274921766,46.98670165,3833.3,3833.2,2.32134]
[1760274921958,47.50550165,3833.3,3833.2,2.32134]
[1760274922154,48.78690165,3833.3,3833.2,2.32134]
[1760274923162,53.78690165,3833.3,3833.0,3.2078]
[1760274923368,1.8002,3833.1,3833.0,2.32136]
[1760274923866,7.97799112,3833.1,3833.0,2.32136]
[1760274924963,7.20369112,3833.1,3833.0,2.61666]
[1760274925163,2.83621369,3833.1,3833.0,5.82446]
[1760274925356,0.22194432,3833.3,3833.2,1.54214]
[1760274925560,0.22194432,3833.3,3833.2,2.32134]
[1760274926560,4.32e-06,3833.3,3833.2,7.32134]
[1760274928766,4.32e-06,3833.3,3833.2,2.32134]
[1760274930568,4.32e-06,3833.3,3833.2,7.32134]
[1760274930768,40.8,3834.1,3834.0,2.59324]
[1760274930972,40.8,3834.1,3834.0,5.80104]
[1760274931166,46.97055942,3834.1,3834.0,5.80104]
[1760274931573,47.51165942,3834.1,3834.0,5.80104]
[1760274931769,0.4936,3833.7,3833.6,3.9712]
[1760274932079,8.27799389,3833.7,3833.6,5.47409]
[1760274932776,6.42599389,3833.7,3833.6,5.47409]
[1760274933073,7.67519389,3833.7,3833.6,5.47409]
[1760274933666,8.19519389,3833.7,3833.6,5.47409]
[1760274933865,1.7692,3833.6,3833.2,3.2078]
[1760274934074,1.7692,3833.3,3833.2,5.46044]
[1760274934571,6.78197618,3833.3,3833.2,5.46044]
[1760274934776,8.05727618,3833.3,3833.2,5.46044]
[1760274935370,0.4939,3832.9,3832.8,3.7064]
[1760274935569,0.4939,3832.9,3832.8,4.991]
[1760274935570,1.7692,3832.9,3832.8,4.991]
[1760274935770,8.06248545,3832.9,3832.8,2.25268]
[1760274935974,48.86248545,3832.9,3832.8,2.25268]
[1760274936182,48.86248545,3832.9,3832.8,0.96808]
[1760274936388,48.86248545,3832.9,3832.8,1.71498]
[1760274936875,48.86248545,3832.9,3832.8,2.25268]
[1760274937083,48.10718545,3832.9,3832.8,5.46048]
[1760274937285,48.86248545,3832.9,3832.8,5.46048]
[1760274937470,0.7553,3833.7,3833.6,0.46939]
[1760274937675,1.77256178,3834.1,3834.0,2.25254]
[1760274938180,48.99614794,3834.1,3834.0,2.25254]
[1760274939083,48.99614794,3834.1,3834.0,0.96794]
[1760274940777,47.72084794,3834.1,3834.0,5.76364]
[1760274941081,48.99614794,3834.1,3834.0,4.17574]
[1760274941474,48.99614794,3834.1,3833.9,0.46935]
[1760274941475,2.0951,3834.0,3833.9,0.46935]
[1760274941870,8.36960866,3834.0,3833.9,0.46935]
[1760274943081,8.36960866,3834.0,3833.9,0.96795]
[1760274943483,8.36960866,3834.0,3833.9,1.71485]
[1760274944585,8.36960866,3834.0,3833.9,0.96795]
[1760274944884,6.27450866,3834.0,3833.9,2.27035]
[1760274945383,40.80336178,3834.1,3834.0,0.46934]
[1760274945579,0.00336178,3834.1,3834.0,5.82314]
[1760274953793,8.11610251,3834.1,3834.0,5.51954]
[1760274953983,8.11610251,3834.1,3834.0,5.01144]
[1760274954184,8.11610251,3834.1,3834.0,4.21714]
[1760274954687,8.11610251,3834.1,3834.0,5.51954]
[1760274954894,1.7955,3833.7,3833.6,4.21719]
[1760274955089,1.7955,3833.7,3833.6,5.51959]
[1760274955288,8.15724208,3833.7,3833.6,5.51959]
[1760274955489,48.95724208,3833.7,3833.6,5.51959]
[1760274955691,47.16174208,3833.7,3833.6,5.51959]
[1760274956191,48.95724208,3833.7,3833.6,5.51959]
[1760274959192,1.7955,3833.4,3833.3,0.46941]
[1760274959602,8.04071108,3833.4,3833.3,0.46941]
[1760274959894,8.04071108,3833.4,3833.3,2.31181]
[1760274960888,1.3032,3832.8,3832.7,3.2078]
[1760274961192,1.3032,3832.8,3832.4,0.7943]
[1760274961193,2.47847,3832.4,3831.6,0.0026135]